Cogmind - Beta 10.2 @@@ ROGUE MODE // 2021.05.29 @ 15:45:54 Player: Mares Result: Destroyed by 1C-UTU with 1C-UTU's Sword "Lootmaker" Performance ------------- Evolutions (1) 500 Regions Visited (6) 1200 Robots Destroyed (42) 210 Value Destroyed (876) 876 Prototype IDs (3) 60 Alien Tech Used (0) 0 Bonus (-9) -9 TOTAL SCORE: 2837 Bonus ------- Follower Combat Kills 333 Friendly Fire -342 Cogmind --------- Core Integrity 0/400 Matter 237/300 Energy 74/100 System Corruption 0% Temperature Cool (0) Movement Core (550) Ox10 Location -8/Mines Parts ------- > --- POWER (1) -------- (None) > --- PROPULSION (2) --- (None) > --- UTILITY (4) ------ Large Storage Unit Large Storage Unit > --- WEAPON (2) ------- (None) > --- INVENTORY (16) --- Advanced Myomer Leg Advanced Myomer Leg Improved Heat Sink Large Matter Pod (68) Large Matter Pod (0) Gravity Neutralizing Apparatus Gravity Neutralizing Apparatus Experimental Sensor Array Improved Signal Interpreter Improved Signal Interpreter Improved Signal Interpreter Experimental Targeting Computer Light Armor Plating Rocket Launcher Peak State ------------ > --- POWER ------------ Reinforced Fission Core > --- PROPULSION ------- Light Treads Advanced Myomer Leg > --- UTILITY ---------- Improved Heat Sink Large Storage Unit High-capacity Storage Unit Gravity Neutralizing Apparatus > --- WEAPON ----------- Assault Rifle Autogun > --- INVENTORY -------- Light Treads Improved Treads Improved Treads Advanced Myomer Leg Compact Wheel Armored Wheel Medium Matter Pod Large Matter Pod Gravity Neutralizing Apparatus Experimental Targeting Computer Advanced Weapon Cycler Light Armor Plating Particle Cannon Particle Cannon Assault Rifle Light Cannon Rocket Launcher [Rating: 33] Favorites ----------- Power Ion Engine Engine Ion Engine Power Core Light Nuclear Core Propulsion Improved Treads Treads Improved Treads Leg Advanced Myomer Leg Wheel Wheel Utility Large Storage Unit Device Improved Heat Sink Storage Large Storage Unit Protection Light Armor Plating Weapon Particle Cannon Energy Gun EM Pulse Gun Energy Cannon Particle Cannon Ballistic Gun Assault Rifle Ballistic Cannon Light Cannon Launcher Rocket Launcher Build | -11 -10 -10 -9 -9 -9 -8 ------- Run | Scr Mat Min Mat Min Exi Min Slots Evolved 2 | . . . 2 . . . Power . | . . . . . . . Propulsion . | . . . . . . . Utility 2 | . . . 2 . . . Weapon . | . . . . . . . Parts Attached 57 | 6 14 2 4 2 21 8 Power 5 | 1 2 1 . . 1 . Engine 3 | 1 1 1 . . . . Core 2 | . 1 . . . 1 . Reactor . | . . . . . . . Propulsion 15 | 2 2 1 . . 6 4 Treads 10 | . 2 1 . . 5 2 Leg 1 | . . . . . 1 . Wheel 4 | 2 . . . . . 2 Hover . | . . . . . . . Flight . | . . . . . . . Utility 17 | 1 5 . 2 1 7 1 Device 5 | . . . . 1 3 1 Storage 7 | 1 4 . 1 . 1 . Processor . | . . . . . . . Hackware . | . . . . . . . Protection 5 | . 1 . 1 . 3 . Artifact . | . . . . . . . Weapon 20 | 2 5 . 2 1 7 3 Energy Gun 1 | . 1 . . . . . Energy Cannon 6 | . . . 2 1 2 1 Ballistic Gun 11 | 2 4 . . . 4 1 Ballistic Cannon 1 | . . . . . . 1 Launcher 1 | . . . . . 1 . Special Weapon . | . . . . . . . Impact Weapon . | . . . . . . . Slashing Weapon . | . . . . . . . Piercing Weapon . | . . . . . . . Special Melee Weapon . | . . . . . . . Unidentified Prototypes 3 | . . . . . 3 . Parts Lost 26 | . 1 2 1 1 9 12 Power 3 | . . 1 . . 1 1 Propulsion 10 | . . 1 . . 4 5 Utility 3 | . . . . . 2 1 Weapon 10 | . 1 . 1 1 2 5 Highest Loss Streak 12 | . 1 2 1 1 4 12 Average Slot Usage (%) 96 | . 99 100 87 97 96 87 Engine 6 | . 4 9 11 11 4 . Core 5 | . 9 4 . . 5 9 Treads 24 | . 28 28 22 22 21 18 Device 3 | . . . . 8 9 6 Storage 28 | . 26 28 32 33 29 33 Protection 1 | . 1 . . . 4 . Energy Gun 3 | . 4 14 1 . . . Energy Cannon 7 | . . . 19 22 10 6 Ballistic Gun 13 | . 23 14 . . 9 9 Naked Turns . | . . . . . . . Heaviest Build 93 | 12 57 57 77 78 93 93 Greatest Support 46 | 20 46 46 43 43 43 23 Greatest Overweight (x) 10 | . 3 1 1 1 4 10 Average Overweight (x) 1 | . . 1 1 1 2 4 Largest Inventory Capacity 24 | 6 18 18 24 24 24 24 Average Capacity 18 | 5 12 18 23 24 21 23 Most Carried 24 | 6 18 18 24 24 23 21 Average Carried 16 | 3 11 17 21 23 19 19 Final Capacity 24 | 6 18 18 24 24 24 16 Final Carried 24 | 6 18 18 24 23 21 14 Class Distribution -------------------- 57% | Mutant 39% | Hauler-Mutant Dominant Class ---------------- Mutant | -10/Materials Mutant | -10/Mines Hauler-Mutant | -9/Materials Hauler-Mutant | -9/Mines Hauler-Mutant | -9/Exiles Hauler-Mutant | -8/Mines Resources | -11 -10 -10 -9 -9 -9 -8 ----------- Run | Scr Mat Min Mat Min Exi Min Matter Collected 1553 | 254 677 48 35 20 519 . Remotely . | . . . . . . . Salvage Created 1699 | . 667 249 535 110 138 . Parts 90 | . 41 8 26 8 7 . Haulers Intercepted 3 | . 2 . 1 . . . Recyclers Shooed 2 | . 2 . . . . . Parts Field Recycled . | . . . . . . . Retrieved Matter . | . . . . . . . Parts Self-Destructed . | . . . . . . . Prevented . | . . . . . . . Kills | -11 -10 -10 -9 -9 -9 -8 ------- Run | Scr Mat Min Mat Min Exi Min Combat Hostiles Destroyed 31 | . 13 3 5 4 6 . Guns 16 | . 13 2 . . 1 . Cannons 9 | . . . 5 4 . . AOE 6 | . . 1 . . 5 . Classes Destroyed 10 | . 7 . 2 . 1 . Worker 2 | . 2 . . . . . Hauler 3 | . 2 . 1 . . . Recycler 5 | . 1 1 3 . . . Mechanic 1 | . . . 1 . . . Operator 1 | . 1 . . . . . Watcher 4 | . 3 . 1 . . . Swarmer 8 | . 6 . . 2 . . Grunt 16 | . 7 3 4 2 . . Sentry 1 | . . . 1 . . . Assembled 7 | . . . . . 7 . Best Kill Streak 8 | . 8 3 3 2 5 . Combat Bots Only 6 | . 6 2 2 2 5 . Max Kills in Single Turn 2 | . 2 1 1 1 2 . Gunslinging . | . . . . . . . Exploded 2 | . . 1 . . 2 . Melee . | . . . . . . . Uniques/NPCs Destroyed 1 | . . . . . 1 . 8R-AWN (-9/Exiles) Combat | -11 -10 -10 -9 -9 -9 -8 -------- Run | Scr Mat Min Mat Min Exi Min Damage Taken 3967 | . 597 203 81 126 1223 1737 Core 550 | . 93 34 . 6 145 272 Absorbed by Shields . | . . . . . . . Core Remaining (%) 74 | 100 . 49 . . . . Volleys Fired 183 | . 75 11 27 9 54 7 Largest 2 | . 2 2 2 2 2 2 Hottest 136 | . 40 60 136 136 91 91 Shots Fired 343 | . 139 22 54 18 96 14 Gun 245 | . 139 22 1 . 75 8 Cannon 94 | . . . 53 18 17 6 Launcher 4 | . . . . . 4 . Special . | . . . . . . . Kinetic 225 | . 128 11 . . 75 11 Thermal 91 | . . . 53 18 17 3 Explosive 4 | . . . . . 4 . Electromagnetic 23 | . 11 11 1 . . . Robot Hit Streak 20 | . 12 8 9 7 20 10 Robot Miss Streak 6 | . 5 1 6 1 3 1 Penetration Max . | . . . . . . . Secondary Targets 2 | . 2 . . . . . Max Gunslinging Chain 1 | . 1 . . . . . Shots Hit Robots 237 | . 90 18 27 13 76 13 Core Hits 88 | . 37 7 12 5 26 1 Critical Hits 3 | . 1 . . . 2 . Critical Kills 1 | . 1 . . . . . Critical Parts Destroyed 1 | . . . . . 1 . Melee Attacks . | . . . . . . . Impact . | . . . . . . . Slashing . | . . . . . . . Piercing . | . . . . . . . Sneak Attacks . | . . . . . . . Combat Hostiles . | . . . . . . . Follow-up Attacks . | . . . . . . . Damage Inflicted 3971 | . 990 358 582 227 1573 241 Guns 2161 | . 990 227 13 . 804 127 Cannons 1258 | . . . 569 227 348 114 Explosions 552 | . . 131 . . 421 . Melee . | . . . . . . . Ramming . | . . . . . . . Kinetic 1957 | . 878 95 . . 804 180 Thermal 1336 | . . 131 569 227 348 61 Explosive 421 | . . . . . 421 . Electromagnetic 257 | . 112 132 13 . . . Impact . | . . . . . . . Slashing . | . . . . . . . Piercing . | . . . . . . . Highest Corruption 2 | . 2 2 . . . . Average Corruption 2 | . 2 2 . . . . Corruption Purged . | . . . . . . . Effects 18 | . 14 4 . . . . Message Errors 5 | . 4 1 . . . . Heat Flow Errors 3 | . 1 2 . . . . Energy Discharges 2 | . 1 1 . . . . Data Loss (minor) 4 | . 4 . . . . . Targeting Errors 4 | . 4 . . . . . Overload Shots . | . . . . . . . Overflow Damage 15 | . . 5 . 1 9 . Projectiles 1 | . . . . 1 . . Explosions 14 | . . 5 . . 9 . Melee . | . . . . . . . Knockbacks 3 | . . . . . . 3 Impact . | . . . . . . . Kinetic 3 | . . . . . . 3 Secondary . | . . . . . . . Self-Inflicted Damage 38 | . . 38 . . . . Shots 1 | . . 1 . . . . Rammed . | . . . . . . . Targets Rammed . | . . . . . . . Kicked . | . . . . . . . Crushed . | . . . . . . . Highest Temperature 375 | . 212 186 242 375 24 184 Average Temperature 75 | . 21 69 74 157 15 126 Received Heat Transfer 333 | . 192 93 30 18 . . Siege Activations . | . . . . . . . Robots Corrupted . | . . . . . . . Combat Hostiles . | . . . . . . . Parts Fried 1 | . . 1 . . . . Impact Corruptions . | . . . . . . . Robots Melted . | . . . . . . . Combat Hostiles . | . . . . . . . Parts Melted 7 | . . 1 3 3 . . Heat Transferred 1673 | . . 50 1036 407 153 27 Parts Sabotaged . | . . . . . . . Parts Stolen . | . . . . . . . Parts Stripped . | . . . . . . . Power Chain Reactions 2 | . . 2 . . . . Missiles Intercepted . | . . . . . . . Alert | -11 -10 -10 -9 -9 -9 -8 ------- Run | Scr Mat Min Mat Min Exi Min Peak Influence 300 | . 300 101 288 114 . . Initial 8 | . . 8 . 5 . . Average 82 | . 89 42 110 85 . . Maximum Alert Level 1 | . 1 . 1 . . . Low Security (%) 85 | 100 79 100 77 100 . 100 Level 1 14 | . 20 . 22 . . . Level 2 . | . . . . . . . Level 3 . | . . . . . . . Level 4 . | . . . . . . . Level 5 . | . . . . . . . High Security . | . . . . . . . Max Security . | . . . . . . . Squads Dispatched 6 | . 2 . 4 . . . Investigation 2 | . . . 2 . . . Extermination . | . . . . . . . Reinforcement 4 | . 2 . 2 . . . Assault . | . . . . . . . Garrison . | . . . . . . . Intercept . | . . . . . . . Construction Impeded . | . . . . . . . Haulers Reinforced . | . . . . . . . Stealth | -11 -10 -10 -9 -9 -9 -8 --------- Run | Scr Mat Min Mat Min Exi Min Distress Signals 3 | . . . 3 . . . Communications Jammed . | . . . . . . . Distress Signals . | . . . . . . . Times Spotted 70 | . 32 4 21 6 6 1 Peak Tracking Total 7 | . 4 2 4 4 7 1 Tactical Retreats 3 | . 3 . . . . . Traps | -11 -10 -10 -9 -9 -9 -8 ------- Run | Scr Mat Min Mat Min Exi Min Traps Triggered 4 | . 3 . 1 . . . Indirectly . | . . . . . . . Trap Hack Attempts . | . . . . . . . Triggered . | . . . . . . . Disarmed . | . . . . . . . Reprogrammed . | . . . . . . . Reused . | . . . . . . . Traps Extracted . | . . . . . . . Installed . | . . . . . . . Triggered . | . . . . . . . Machines | -11 -10 -10 -9 -9 -9 -8 ---------- Run | Scr Mat Min Mat Min Exi Min Machines Disabled 5 | . . . 1 . 4 . Max in Single Turn 2 | . . . 1 . 2 . Machines Sabotaged . | . . . . . . . Garrisons Compromised . | . . . . . . . Overloaded Fab Kills . | . . . . . . . Fab Network Shutdowns . | . . . . . . . Hacking | -11 -10 -10 -9 -9 -9 -8 --------- Run | Scr Mat Min Mat Min Exi Min Machines Accessed 11 | . 6 . 5 . . . Terminals 10 | . 5 . 5 . . . Fabricators . | . . . . . . . Repair Stations . | . . . . . . . Recycling Units 1 | . 1 . . . . . Scanalyzers . | . . . . . . . Garrison Access . | . . . . . . . Total Hacks 32 | . 19 . 13 . . . Successful 18 | . 9 . 9 . . . Failed 14 | . 10 . 4 . . . Catastrophic 2 | . . . 2 . . . Database Lockouts . | . . . . . . . Manual 13 | . 6 . 7 . . . Terminals 29 | . 16 . 13 . . . Fabricators . | . . . . . . . Repair Stations . | . . . . . . . Recycling Units 3 | . 3 . . . . . Scanalyzers . | . . . . . . . Garrison Access . | . . . . . . . Terminal Hacks 11 | . 4 . 7 . . . Branch Access Points 1 | . . . 1 . . . Alert Level 1 | . . . 1 . . . Unreport Threat 4 | . 1 . 3 . . . Locate Traps 2 | . 1 . 1 . . . Zone Layout 3 | . 2 . 1 . . . Fabricator Hacks . | . . . . . . . Repair Station Hacks . | . . . . . . . Recycling Unit Hacks 3 | . 3 . . . . . Process 1 | . 1 . . . . . Report Inventory 1 | . 1 . . . . . Retrieve Matter 1 | . 1 . . . . . Scanalyzer . | . . . . . . . Garrison Access Hacks . | . . . . . . . Unauthorized Hacks 4 | . 2 . 2 . . . Terminals 4 | . 2 . 2 . . . Track 2 | . 1 . 1 . . . Botnet 2 | . 1 . 1 . . . Fabricators . | . . . . . . . Repair Stations . | . . . . . . . Recycling Units . | . . . . . . . Scanalyzers . | . . . . . . . Garrison Access . | . . . . . . . Data Cores Recovered . | . . . . . . . Used . | . . . . . . . Hacking Detections 9 | . 5 . 4 . . . Full Trace Events 1 | . . . 1 . . . Feedback Events . | . . . . . . . Feedback Blocked . | . . . . . . . Robot Schematics Acquired . | . . . . . . . Robots Built . | . . . . . . . Matter . | . . . . . . . Time . | . . . . . . . Total Robot Build Rating . | . . . . . . . Part Schematics Acquired . | . . . . . . . Parts Built . | . . . . . . . Matter . | . . . . . . . Time . | . . . . . . . Total Part Build Rating . | . . . . . . . Parts Repaired . | . . . . . . . Time . | . . . . . . . Parts Recycled . | . . . . . . . Recycled Matter 114 | . 114 . . . . . Retrieved Matter 173 | . 173 . . . . . Retrieved Components . | . . . . . . . Parts Scanalyzed . | . . . . . . . Part Schematics Acquired . | . . . . . . . Parts Damaged . | . . . . . . . Bothacking | -11 -10 -10 -9 -9 -9 -8 ------------ Run | Scr Mat Min Mat Min Exi Min Used RIF Installer . | . . . . . . . Robots Hacked . | . . . . . . . Non-combat . | . . . . . . . Combat . | . . . . . . . Robot Hacks Applied . | . . . . . . . Relay Couplers Released . | . . . . . . . Robots Rewired . | . . . . . . . Allies Hacked . | . . . . . . . Hacks Repelled . | . . . . . . . Allies | -11 -10 -10 -9 -9 -9 -8 -------- Run | Scr Mat Min Mat Min Exi Min Total Allies 3 | . . 3 . . . . Largest Group 3 | . . 3 3 2 . . Highest-Rated Group 40 | . . 40 40 32 . . Highest-Rated Ally 16 | . . 16 16 16 . . Total Orders . | . . . . . . . Ally Attacks 65 | . . 14 47 4 . . Total Damage 736 | . . 129 577 30 . . Kills 17 | . . 1 14 2 . . Allies Corrupted . | . . . . . . . Allies Melted . | . . . . . . . Intel | -11 -10 -10 -9 -9 -9 -8 ------- Run | Scr Mat Min Mat Min Exi Min Robot Analysis Total . | . . . . . . . Derelict Logs Recovered 1 | . . 1 . . . . Drone Launches . | . . . . . . . Drone Recoveries . | . . . . . . . Exploration | -11 -10 -10 -9 -9 -9 -8 ------------- Run | Scr Mat Min Mat Min Exi Min Turns Passed 4644 | 59 1753 461 590 380 1331 70 Spaces Moved 2164 | 57 881 232 241 187 548 18 Core 7 | 5 1 . . . . 1 Treads 2102 | . 877 232 241 187 548 17 Legs . | . . . . . . . Wheels 55 | 52 3 . . . . . Hover . | . . . . . . . Flight . | . . . . . . . Fastest Speed 50 | 50 80 180 180 180 180 220 Average Speed 179 | 77 167 180 180 180 206 255 Slowest Speed 550 | 80 200 180 180 180 240 550 Overloaded Moves . | . . . . . . . Propulsion Burnouts . | . . . . . . . Robots Hopped . | . . . . . . . Cave-ins Triggered . | . . . . . . . Exploration Rate (%) 41 | 3 99 55 31 41 53 5 Regions Visited 6 Branch Regions 4 Pre-discovered Areas 1 | . . 1 . . . . Known Exits Taken 1 | . . . 1 . . . Unknown Exits Taken 5 | 1 1 1 . 1 1 . Scrap Searched . | . . . . . . . Spaces Dug . | . . . . . . . Terrain Destroyed 36 | . . 15 . . 21 . Melee . | . . . . . . . Projectile . | . . . . . . . AOE 36 | . . 15 . . 21 . Terrain Rammed . | . . . . . . . Walls Destroyed . | . . . . . . . Machines Disabled . | . . . . . . . Actions | -11 -10 -10 -9 -9 -9 -8 --------- Run | Scr Mat Min Mat Min Exi Min Total 2606 | 68 1035 254 348 212 655 34 Wait 112 | . 26 6 55 15 10 . Move 2158 | 56 880 231 240 186 547 18 Hop . | . . . . . . . Pick Up 58 | 6 22 3 14 . 13 . Fast Attach 19 | 6 8 . 1 1 3 . Attach 24 | . 1 2 3 1 10 7 Detach 3 | . . . 1 . 2 . Swap 14 | . 5 . . . 8 1 Drop 35 | . 18 1 7 . 8 1 Fire 183 | . 75 11 27 9 54 7 Melee . | . . . . . . . Ram . | . . . . . . . Kick . | . . . . . . . Crush . | . . . . . . . Escape Stasis . | . . . . . . . Rewire . | . . . . . . . Trap . | . . . . . . . Miscellaneous . | . . . . . . . Route ------- -11/Scrapyard -10/Materials (discovered 4 exits: *Mat x3 / [*Min]) -10/Mines -9/Materials -9/Mines (discovered 2 exits: [*Mat] / [*Exi]) -9/Exiles -8/Mines History --------- Turn | Location | Event 14 | -11/Scrapyard | Discovered new exit (range 16) 60 | -11/Scrapyard | Entered Materials 224 | -10/Materials | Discovered new exit (range 6) 300 | -10/Materials | Build established: Mutant 404 | -10/Materials | Discovered new exit (range 16) 1079 | -10/Materials | Discovered new exit (range 4) 1166 | -10/Materials | Discovered new exit (range 8) 1813 | -10/Materials | Entered Mines 1839 | -10/Mines | Learned location of Zion (-7) 1887 | -10/Mines | Found a damaged Exp. Sensor Array with a note attached 1891 | -10/Mines | Found Prototype Device 1956 | -10/Mines | Core integrity fell below 50% 2075 | -10/Mines | Assisted by bots powering up and referring to "LRC-V3" 2220 | -10/Mines | Discovered new exit (range 14) 2274 | -10/Mines | Entered Materials 2274 | -9/Materials | Accompanied by 3 allies 2274 | -9/Materials | Evolved 2 slots: Utility x2 2592 | -9/Materials | Build established: Hauler-Mutant 2622 | -9/Materials | Identified exit to Mines 2864 | -9/Materials | Entered Mines 2864 | -9/Mines | Accompanied by 2 allies 2870 | -9/Mines | Discovered new exit (range 11) 3235 | -9/Mines | Deemed a non-threat by the Exiles lab entrance 3237 | -9/Mines | Discovered new exit (range 5) 3244 | -9/Mines | Entered Exiles 3288 | -9/Exiles | Met 8R-AWN 3318 | -9/Exiles | Met EX-HEX 3385 | -9/Exiles | Met EX-DEC 3433 | -9/Exiles | Met EX-BIN 3565 | -9/Exiles | Discovered new exit (range 14) 3751 | -9/Exiles | Attacked by the Exiles 3829 | -9/Exiles | Lost 4 parts (1p2n1u) 3911 | -9/Exiles | Lost 4 parts (2n1u1w) 3915 | -9/Exiles | Destroyed 8R-AWN 3933 | -9/Exiles | Found Prototype Processor 4066 | -9/Exiles | Identified Exp. Sensor Array 4575 | -9/Exiles | Entered Mines 4612 | -8/Mines | 1C-UTU came to Exiles' defense 4630 | -8/Mines | Core integrity fell below 50% 4645 | -8/Mines | Destroyed by 1C-UTU with 1C-UTU's Sword "Lootmaker" Last Messages --------------- 04619_ 1C-UTU follow-up attacks with Prototype Slashing Weapon. 04619_ Adv. Weapon Cycler destroyed. 04620_ 1C-UTU knocked back. 04622_ Lgt. Treads destroyed. 04625_ 1C-UTU knocked back. 04629_ 1C-UTU follow-up attacks with Prototype Slashing Weapon. 04630_ Lgt. Cannon destroyed. 04632_ Imp. Treads destroyed. 04632_ 1C-UTU follow-up attacks with Prototype Slashing Weapon. 04633_ Autogun destroyed. 04634_ Assault Rifle destroyed. 04637_ Particle Cannon destroyed. 04637_ 1C-UTU follow-up attacks with Prototype Slashing Weapon. 04639_ Imp. Treads destroyed. 04639_ Rnf. Fission Core destroyed. 04641_ 1C-UTU follow-up attacks with Prototype Slashing Weapon. 04641_ Arm. Wheel severed. 04642_ Dropped Hcp. Storage Unit. 04642_ Com. Wheel destroyed. 04645_ 1C-UTU follow-up attacks with Prototype Slashing Weapon. Map ----- +----------------------------------------------------+ | ?????????????????????????????????????? | | ?????????????????????????????????????? | | ?????????????????????????????????????? | | ?????????????????????????????????????? | | ?????????????????????????????????????? | | ?????????????????????????????????????? | | ?????????????????????????????????????? | | ?????????????????????????????????????? | | ?????????????????????????????????????? | | ?????????????????????????????????????? | | ?????????????????????????????????????? | | ?????????????????????????????????????? | | ?????????????????????????????????????? | | ?????????????????????????????????????? | | ?????????????????????????????????????? | | ?????????????????????????????????????? | | ?????????????????????????????????????? | | ?????????????????????????????????????? | | ?????????????????????????????????????? | | ??????????????????????????????####???? | | ???????????# ???????????????? #???? | | ??????????# #####????? #???? | | ??????????# %* #?????# #???? | | ?????????# #### #???### ####? | | ???????????????????????#l##### #? | | ???????????????????????#!@ #? | | ???????????????????????####### #? | | ?????????????????????????????# #? | | ?????????????????????????????# #? | | ?????????????????????????????########? | | ?????????????????????????????????????? | | ?????????????????????????????????????? | | ?????????????????????????????????????? | | ?????????????????????????????????????? | | ?????????????????????????????????????? | | ?????????????????????????????????????? | | ?????????????????????????????????????? | | ?????????????????????????????????????? | | ?????????????????????????????????????? | | ?????????????????????????????????????? | | ?????????????????????????????????????? | | ?????????????????????????????????????? | | ?????????????????????????????????????? | | ?????????????????????????????????????? | | ?????????????????????????????????????? | | ?????????????????????????????????????? | | ?????????????????????????????????????? | | ?????????????????????????????????????? | | ?????????????????????????????????????? | | ?????????????????????????????????????? | +----------------------------------------------------+ Best States ------------- Heat Dissipation 42 Energy Generation 19 Energy Capacity 310 Matter Stores 300 Matter Capacity 300 Sight Range 16 Robot Scan Range 30 Terrain Scan Density 10 Armor Coverage 300 Evasion (%) 44 Recoil Reduction 2 Item Schematics ----------------- None Robot Schematics ------------------ None Fabricated ------------ Nothing Alien Tech Used ----------------- None Achievements -------------- None Challenges ------------ None Game ------ Seed GuidedChargeFlamer Manual? 0 Play Time 00:41:57 Cumulative 62.0 hours Start 2021.05.29 @ 14:08:58 End 2021.05.29 @ 15:45:54 Sessions 1 Manual Loads 0 Difficulty Rogue Special Mode None Game No. 28 Rogue 28 Adventurer 0 Explorer 0 Win Type - Total 1 Types 1/0/0/0/0/0/0/0/0 Lore% 46 Gallery% 50 Achievement% 41 Wizard Run 0 Options --------- ASCII 0 Keyboard 0 Movement Mouse Keybinds 0 Fullscreen 1 Font 18/SmallcapsGlow Map View 76x50 Tactical HUD 1 Map Filters NONE Filters NONE Steam 1 RUN: e2c3286a-0ee6-47cf-a36a-243a6deb9db3